[Event "Early-Titled-Tuesday-Blitz-May-28-2024"]
[Site "Chess.com"]
[Date "2024.05.28"]
[Round "6"]
[White "Franmu14"]
[Black "Veleamater"]
[Result "1-0"]
[WhiteElo "2710"]
[BlackElo "2430"]
[TimeControl "180+1"]
[EndTime "9:04:50 PDT"]
[Termination "Franmu14 won by resignation"]

1. e4 {[%clk 0:03:00.9]} 1... d6 {[%clk 0:02:59.3]} 2. Nc3 {[%clk 0:03:01.8]}
2... g6 {[%clk 0:02:59.1]} 3. d4 {[%clk 0:03:00.5]} 3... Bg7 {[%clk 0:02:59.2]}
4. f3 {[%clk 0:03:01.1]} 4... Nf6 {[%clk 0:02:59.2]} 5. Be3 {[%clk 0:03:01.7]}
5... O-O {[%clk 0:02:59.6]} 6. Qd2 {[%clk 0:03:02.4]} 6... Nc6 {[%clk 0:03:00]}
7. O-O-O {[%clk 0:03:03]} 7... e5 {[%clk 0:03:00.3]} 8. Nge2 {[%clk 0:03:02.7]}
8... Nh5 {[%clk 0:02:57.4]} 9. d5 {[%clk 0:03:02.1]} 9... Ne7 {[%clk 0:02:57.1]}
10. g4 {[%clk 0:03:02.7]} 10... Nf4 {[%clk 0:02:56.9]} 11. Nxf4 {[%clk 0:03:02]}
11... exf4 {[%clk 0:02:57.3]} 12. Bxf4 {[%clk 0:03:02.9]} 12... f5 {[%clk
0:02:57.7]} 13. gxf5 {[%clk 0:03:03.4]} 13... gxf5 {[%clk 0:02:57.8]} 14. Bh6
{[%clk 0:03:04]} 14... Ng6 {[%clk 0:02:55.8]} 15. Bxg7 {[%clk 0:03:04.1]} 15...
Kxg7 {[%clk 0:02:55.7]} 16. h4 {[%clk 0:03:04.8]} 16... f4 {[%clk 0:02:55.8]}
17. h5 {[%clk 0:03:04.9]} 17... Ne5 {[%clk 0:02:55.9]} 18. Bh3 {[%clk
0:03:01.3]} 18... a6 {[%clk 0:02:54.1]} 19. Ne2 {[%clk 0:02:58.4]} 19... Qf6
{[%clk 0:02:52.3]} 20. Nd4 {[%clk 0:02:56.7]} 20... Kh8 {[%clk 0:02:51.9]} 21.
Bxc8 {[%clk 0:02:55.3]} 21... Raxc8 {[%clk 0:02:51.2]} 22. Ne6 {[%clk
0:02:54.9]} 22... Rf7 {[%clk 0:02:51.5]} 23. Qc3 {[%clk 0:02:45.4]} 23... c5
{[%clk 0:02:37]} 24. Rdg1 {[%clk 0:02:40.1]} 24... b5 {[%clk 0:02:31.8]} 25. Rh3
{[%clk 0:02:37.9]} 25... b4 {[%clk 0:02:28.7]} 26. Qe1 {[%clk 0:02:35.3]} 26...
a5 {[%clk 0:02:27.7]} 27. Rg5 {[%clk 0:02:31.3]} 27... h6 {[%clk 0:02:23.7]} 28.
Rf5 {[%clk 0:02:29.5]} 28... Qe7 {[%clk 0:02:19.3]} 29. Nxf4 {[%clk 0:02:19.6]}
29... Rxf5 {[%clk 0:02:17.8]} 30. exf5 {[%clk 0:02:20.5]} 30... Qg5 {[%clk
0:02:17.4]} 31. Qg3 {[%clk 0:02:19.1]} 31... Kg7 {[%clk 0:02:02.5]} 32. Qxg5+
{[%clk 0:01:45.3]} 32... hxg5 {[%clk 0:02:01.9]} 33. Ng6 {[%clk 0:01:46.2]}
33... Nf7 {[%clk 0:01:37.3]} 34. f4 {[%clk 0:01:34.3]} 34... g4 {[%clk
0:01:37.1]} 35. Re3 {[%clk 0:01:32.9]} 35... Nh6 {[%clk 0:01:35.2]} 36. Re7+
{[%clk 0:01:29.8]} 36... Kf6 {[%clk 0:01:35.1]} 37. Re6+ {[%clk 0:01:30.5]}
37... Kf7 {[%clk 0:01:33.9]} 38. Nh4 {[%clk 0:01:27.6]} 38... Rd8 {[%clk
0:01:25.8]} 39. Rxh6 {[%clk 0:01:25.9]} 1-0

[Event "Early-Titled-Tuesday-Blitz-May-28-2024"]
[Site "Chess.com"]
[Date "2024.05.28"]
[Round "6"]
[White "Thjop"]
[Black "bascheyaro"]
[Result "1-0"]
[WhiteElo "2634"]
[BlackElo "2805"]
[TimeControl "180+1"]
[EndTime "9:04:54 PDT"]
[Termination "Thjop won by checkmate"]

1. e4 {[%clk 0:03:00.9]} 1... e6 {[%clk 0:02:59.9]} 2. d4 {[%clk 0:03:00.7]}
2... d5 {[%clk 0:03:00.1]} 3. Nd2 {[%clk 0:03:01.3]} 3... c5 {[%clk 0:03:00.1]}
4. Ngf3 {[%clk 0:03:00.9]} 4... Nc6 {[%clk 0:03:00.5]} 5. Bb5 {[%clk 0:02:58.9]}
5... c4 {[%clk 0:03:00.9]} 6. O-O {[%clk 0:02:56]} 6... Bd6 {[%clk 0:03:01]} 7.
b3 {[%clk 0:02:43.8]} 7... cxb3 {[%clk 0:03:00.8]} 8. axb3 {[%clk 0:02:41.7]}
8... Ne7 {[%clk 0:03:00.5]} 9. Re1 {[%clk 0:02:33.1]} 9... O-O {[%clk
0:02:59.9]} 10. Bb2 {[%clk 0:02:27.6]} 10... a6 {[%clk 0:02:59.5]} 11. Bd3
{[%clk 0:02:25.8]} 11... Nb4 {[%clk 0:02:58.1]} 12. Bf1 {[%clk 0:02:25.8]} 12...
dxe4 {[%clk 0:02:47.1]} 13. Nxe4 {[%clk 0:02:20.3]} 13... Bc7 {[%clk 0:02:47.4]}
14. c3 {[%clk 0:02:16.8]} 14... Nbd5 {[%clk 0:02:45.7]} 15. c4 {[%clk
0:02:17.2]} 15... Nf4 {[%clk 0:02:45.8]} 16. g3 {[%clk 0:02:17.2]} 16... Nfg6
{[%clk 0:02:45.8]} 17. h4 {[%clk 0:02:13.2]} 17... h6 {[%clk 0:02:30.8]} 18. h5
{[%clk 0:02:10.2]} 18... Nh8 {[%clk 0:02:30.4]} 19. Ne5 {[%clk 0:01:59.6]} 19...
f6 {[%clk 0:02:25.4]} 20. Nf3 {[%clk 0:01:59.2]} 20... Nf7 {[%clk 0:02:24.7]}
21. Bg2 {[%clk 0:01:52.5]} 21... Ng5 {[%clk 0:02:23]} 22. Nfxg5 {[%clk
0:01:46.1]} 22... fxg5 {[%clk 0:02:23.1]} 23. Nc5 {[%clk 0:01:42.3]} 23... Nc6
{[%clk 0:02:02]} 24. Nxe6 {[%clk 0:01:32.6]} 24... Bxe6 {[%clk 0:02:00.6]} 25.
Rxe6 {[%clk 0:01:33.5]} 25... Qd7 {[%clk 0:01:58.5]} 26. d5 {[%clk 0:01:23.3]}
26... Qf7 {[%clk 0:01:55.1]} 27. Qe2 {[%clk 0:01:18.2]} 27... Rae8 {[%clk
0:01:45]} 28. Re1 {[%clk 0:01:14]} 28... Rxe6 {[%clk 0:01:44.7]} 29. Qxe6 {[%clk
0:01:10.3]} 29... Na5 {[%clk 0:01:43.3]} 30. Qxf7+ {[%clk 0:01:05.6]} 30... Kxf7
{[%clk 0:01:43.3]} 31. d6 {[%clk 0:00:58]} 31... Bb6 {[%clk 0:01:33.8]} 32. Bd5#
{[%clk 0:00:53.5]} 1-0

[Event "Early-Titled-Tuesday-Blitz-May-28-2024"]
[Site "Chess.com"]
[Date "2024.05.28"]
[Round "6"]
[White "Andrii_Prydun"]
[Black "chessamical"]
[Result "0-1"]
[WhiteElo "2384"]
[BlackElo "2290"]
[TimeControl "180+1"]
[EndTime "9:05:01 PDT"]
[Termination "chessamical won by resignation"]

1. Nf3 {[%clk 0:02:54.4]} 1... d5 {[%clk 0:02:55.3]} 2. d4 {[%clk 0:02:50.6]}
2... Nf6 {[%clk 0:02:53.7]} 3. Bf4 {[%clk 0:02:48.8]} 3... e6 {[%clk 0:02:48.9]}
4. e3 {[%clk 0:02:43.7]} 4... Bd6 {[%clk 0:02:49.2]} 5. Bd3 {[%clk 0:02:42.7]}
5... O-O {[%clk 0:02:47.2]} 6. O-O {[%clk 0:02:42.3]} 6... c5 {[%clk 0:02:47.3]}
7. c3 {[%clk 0:02:40.9]} 7... Bxf4 {[%clk 0:02:46.8]} 8. exf4 {[%clk 0:02:40.6]}
8... b6 {[%clk 0:02:42.4]} 9. Nbd2 {[%clk 0:02:34.2]} 9... Ba6 {[%clk
0:02:37.8]} 10. Bxa6 {[%clk 0:02:24.3]} 10... Nxa6 {[%clk 0:02:37.1]} 11. Qe2
{[%clk 0:02:25.2]} 11... Nc7 {[%clk 0:02:22.1]} 12. Ne5 {[%clk 0:02:08.5]} 12...
cxd4 {[%clk 0:02:18]} 13. cxd4 {[%clk 0:02:08.1]} 13... Nce8 {[%clk 0:02:06.2]}
14. Rac1 {[%clk 0:02:06.8]} 14... Nd6 {[%clk 0:02:06.7]} 15. f3 {[%clk
0:02:03.2]} 15... Nfe8 {[%clk 0:01:49.4]} 16. Nd3 {[%clk 0:02:02.4]} 16... Nf5
{[%clk 0:01:36.5]} 17. Nb3 {[%clk 0:01:51.6]} 17... Qf6 {[%clk 0:01:33.1]} 18.
Ne5 {[%clk 0:01:46.8]} 18... Qe7 {[%clk 0:01:22]} 19. g4 {[%clk 0:01:26.8]}
19... Nh4 {[%clk 0:00:56.6]} 20. Kf2 {[%clk 0:01:23.5]} 20... Ng6 {[%clk
0:00:54.3]} 21. Kg3 {[%clk 0:01:21.5]} 21... Qh4+ {[%clk 0:00:48.3]} 22. Kg2
{[%clk 0:01:18.5]} 22... Nxf4+ {[%clk 0:00:48.9]} 23. Kh1 {[%clk 0:01:19.2]}
23... Nxe2 {[%clk 0:00:49.1]} 0-1

[Event "Early-Titled-Tuesday-Blitz-May-28-2024"]
[Site "Chess.com"]
[Date "2024.05.28"]
[Round "6"]
[White "McCarthyStone"]
[Black "SaraBlackPanther"]
[Result "0-1"]
[WhiteElo "2458"]
[BlackElo "2756"]
[TimeControl "180+1"]
[EndTime "9:05:30 PDT"]
[Termination "SaraBlackPanther won by resignation"]

1. b3 {[%clk 0:03:00.9]} 1... b6 {[%clk 0:02:52.3]} 2. Bb2 {[%clk 0:03:01.5]}
2... Bb7 {[%clk 0:02:52.7]} 3. e3 {[%clk 0:03:01.3]} 3... d6 {[%clk 0:02:45.4]}
4. Nf3 {[%clk 0:02:57.8]} 4... Nd7 {[%clk 0:02:45.9]} 5. d4 {[%clk 0:02:57.6]}
5... g6 {[%clk 0:02:42.7]} 6. Nc3 {[%clk 0:02:55.1]} 6... Bg7 {[%clk 0:02:42.7]}
7. h4 {[%clk 0:02:54.5]} 7... Ngf6 {[%clk 0:02:41.3]} 8. Qd2 {[%clk 0:02:55.1]}
8... a6 {[%clk 0:02:36.8]} 9. O-O-O {[%clk 0:02:55.1]} 9... b5 {[%clk
0:02:36.6]} 10. Kb1 {[%clk 0:02:54.8]} 10... c5 {[%clk 0:02:35.5]} 11. h5 {[%clk
0:02:52.2]} 11... Nxh5 {[%clk 0:02:33.2]} 12. Rxh5 {[%clk 0:02:51.8]} 12... gxh5
{[%clk 0:02:33.3]} 13. Nh4 {[%clk 0:02:46.7]} 13... e6 {[%clk 0:02:24.2]} 14. g3
{[%clk 0:02:41.1]} 14... d5 {[%clk 0:02:17.3]} 15. dxc5 {[%clk 0:02:33.5]} 15...
Nxc5 {[%clk 0:02:13.2]} 16. Qe2 {[%clk 0:02:21]} 16... Qa5 {[%clk 0:01:31.8]}
17. Bh3 {[%clk 0:01:42.4]} 17... Bxc3 {[%clk 0:01:27.9]} 18. Qxh5 {[%clk
0:01:41.9]} 18... Bxb2 {[%clk 0:01:23.7]} 19. Nf5 {[%clk 0:01:42.4]} 19... exf5
{[%clk 0:01:02.5]} 20. Kxb2 {[%clk 0:01:42.2]} 20... O-O-O {[%clk 0:00:57.3]}
21. Bxf5+ {[%clk 0:01:42.5]} 21... Kb8 {[%clk 0:00:57.4]} 22. Qxf7 {[%clk
0:01:42.5]} 22... Ne4 {[%clk 0:00:54.6]} 23. Rd3 {[%clk 0:01:17.5]} 23... Nd6
{[%clk 0:00:48.3]} 24. Qf6 {[%clk 0:01:13.8]} 24... Rhf8 {[%clk 0:00:46.9]} 25.
Qe5 {[%clk 0:01:09.7]} 25... Rxf5 {[%clk 0:00:46.3]} 26. Qd4 {[%clk 0:01:10.6]}
26... Rff8 {[%clk 0:00:44.8]} 27. f4 {[%clk 0:01:10.5]} 27... Qc7 {[%clk
0:00:44.6]} 0-1

[Event "Early-Titled-Tuesday-Blitz-May-28-2024"]
[Site "Chess.com"]
[Date "2024.05.28"]
[Round "6"]
[White "David_Arutinian"]
[Black "Vesper2018"]
[Result "0-1"]
[WhiteElo "2818"]
[BlackElo "2584"]
[TimeControl "180+1"]
[EndTime "9:05:32 PDT"]
[Termination "Vesper2018 won by resignation"]

1. Nf3 {[%clk 0:03:00.9]} 1... Nf6 {[%clk 0:02:59.9]} 2. c4 {[%clk 0:02:58.2]}
2... g6 {[%clk 0:03:00.2]} 3. Nc3 {[%clk 0:02:57.5]} 3... Bg7 {[%clk 0:03:00.9]}
4. e4 {[%clk 0:02:57.9]} 4... d6 {[%clk 0:03:01.4]} 5. d4 {[%clk 0:02:58.4]}
5... O-O {[%clk 0:03:01.6]} 6. Be2 {[%clk 0:02:58.9]} 6... e5 {[%clk 0:03:00]}
7. O-O {[%clk 0:02:58.9]} 7... Nc6 {[%clk 0:02:59.8]} 8. d5 {[%clk 0:02:57.3]}
8... Ne7 {[%clk 0:02:59.8]} 9. Ne1 {[%clk 0:02:56.4]} 9... Nd7 {[%clk 0:02:59]}
10. Be3 {[%clk 0:02:56.3]} 10... f5 {[%clk 0:02:58.8]} 11. f3 {[%clk 0:02:56.2]}
11... f4 {[%clk 0:02:59.3]} 12. Bf2 {[%clk 0:02:56.5]} 12... g5 {[%clk
0:02:58.1]} 13. Rc1 {[%clk 0:02:56.9]} 13... h5 {[%clk 0:02:49]} 14. Nb5 {[%clk
0:02:55.8]} 14... b6 {[%clk 0:02:43.3]} 15. b4 {[%clk 0:02:55.6]} 15... a6
{[%clk 0:02:41.8]} 16. Nc3 {[%clk 0:02:55.5]} 16... Nf6 {[%clk 0:02:39.1]} 17.
c5 {[%clk 0:02:55.9]} 17... bxc5 {[%clk 0:02:36]} 18. bxc5 {[%clk 0:02:56.3]}
18... g4 {[%clk 0:02:33.6]} 19. cxd6 {[%clk 0:02:56.6]} 19... cxd6 {[%clk
0:02:33]} 20. Na4 {[%clk 0:02:57.2]} 20... Rb8 {[%clk 0:02:24]} 21. Rb1 {[%clk
0:02:46.2]} 21... Rxb1 {[%clk 0:02:07.9]} 22. Qxb1 {[%clk 0:02:47.1]} 22... Qe8
{[%clk 0:01:57.6]} 23. Qb8 {[%clk 0:02:43.6]} 23... Qxa4 {[%clk 0:01:50.7]} 24.
Qxd6 {[%clk 0:02:43.4]} 24... Ng6 {[%clk 0:01:45.5]} 25. Qc7 {[%clk 0:02:26.9]}
25... gxf3 {[%clk 0:01:24.2]} 26. gxf3 {[%clk 0:02:21]} 26... Bh3 {[%clk
0:01:23.8]} 27. Ng2 {[%clk 0:02:21.6]} 27... Nxe4 {[%clk 0:01:09]} 28. Bc4
{[%clk 0:02:02.9]} 28... Rc8 {[%clk 0:00:49.9]} 29. d6+ {[%clk 0:02:00.4]} 29...
Qxc4 {[%clk 0:00:48.4]} 30. Qxc4+ {[%clk 0:01:57.1]} 30... Rxc4 {[%clk
0:00:48.3]} 31. fxe4 {[%clk 0:01:58]} 31... Rxe4 {[%clk 0:00:33]} 32. Rd1 {[%clk
0:01:55]} 32... Nf8 {[%clk 0:00:33.3]} 33. Nh4 {[%clk 0:01:54.3]} 33... Nd7
{[%clk 0:00:31.9]} 34. a3 {[%clk 0:01:53.2]} 34... Re2 {[%clk 0:00:31.7]} 35.
Ng6 {[%clk 0:01:50.7]} 35... Kf7 {[%clk 0:00:29.8]} 36. Ne7 {[%clk 0:01:51.2]}
36... e4 {[%clk 0:00:29.2]} 37. Rd5 {[%clk 0:01:48.8]} 37... e3 {[%clk
0:00:28.6]} 38. Bh4 {[%clk 0:01:49]} 38... f3 {[%clk 0:00:26.3]} 0-1

[Event "Early-Titled-Tuesday-Blitz-May-28-2024"]
[Site "Chess.com"]
[Date "2024.05.28"]
[Round "6"]
[White "tactic"]
[Black "Resignify"]
[Result "1-0"]
[WhiteElo "2606"]
[BlackElo "2307"]
[TimeControl "180+1"]
[EndTime "9:05:42 PDT"]
[Termination "tactic won by checkmate"]

1. Nf3 {[%clk 0:03:00.9]} 1... Nf6 {[%clk 0:02:58.9]} 2. g3 {[%clk 0:03:01]}
2... g6 {[%clk 0:02:58.8]} 3. Bg2 {[%clk 0:03:01.6]} 3... Bg7 {[%clk 0:02:59.4]}
4. c4 {[%clk 0:03:02.3]} 4... O-O {[%clk 0:02:59.7]} 5. O-O {[%clk 0:03:03]}
5... c5 {[%clk 0:03:00]} 6. d4 {[%clk 0:03:02.2]} 6... cxd4 {[%clk 0:02:57.3]}
7. Nxd4 {[%clk 0:03:03.1]} 7... Nc6 {[%clk 0:02:57.3]} 8. Nc3 {[%clk 0:03:00.2]}
8... Nxd4 {[%clk 0:02:47.4]} 9. Qxd4 {[%clk 0:03:01.1]} 9... d6 {[%clk
0:02:46.6]} 10. Qd1 {[%clk 0:02:35.3]} 10... a6 {[%clk 0:02:42.9]} 11. Be3
{[%clk 0:02:32]} 11... Rb8 {[%clk 0:02:29.5]} 12. Qd2 {[%clk 0:02:22.7]} 12...
b5 {[%clk 0:02:23.3]} 13. cxb5 {[%clk 0:02:20.5]} 13... axb5 {[%clk 0:02:23.4]}
14. a4 {[%clk 0:02:07.9]} 14... bxa4 {[%clk 0:02:19.2]} 15. Rxa4 {[%clk
0:02:08.8]} 15... Bb7 {[%clk 0:02:08]} 16. Bxb7 {[%clk 0:01:56]} 16... Rxb7
{[%clk 0:02:08.1]} 17. Rfa1 {[%clk 0:01:56.9]} 17... Qb8 {[%clk 0:01:52.3]} 18.
R1a2 {[%clk 0:01:51.7]} 18... Nd7 {[%clk 0:01:34.4]} 19. Bh6 {[%clk 0:01:46.6]}
19... Bxh6 {[%clk 0:01:23.2]} 20. Qxh6 {[%clk 0:01:47.5]} 20... Rxb2 {[%clk
0:01:22.6]} 21. Rh4 {[%clk 0:01:39.7]} 21... Nf6 {[%clk 0:01:10.6]} 22. Nd5
{[%clk 0:01:15.8]} 22... Nh5 {[%clk 0:00:26.8]} 23. Nxe7+ {[%clk 0:01:15.2]}
23... Kh8 {[%clk 0:00:26.1]} 24. Rxb2 {[%clk 0:01:16]} 24... Qc7 {[%clk
0:00:06.8]} 25. Qxf8# {[%clk 0:01:16]} 1-0

[Event "Early-Titled-Tuesday-Blitz-May-28-2024"]
[Site "Chess.com"]
[Date "2024.05.28"]
[Round "6"]
[White "IndianSchoolOfSuffering"]
[Black "MarlonJodar"]
[Result "1-0"]
[WhiteElo "2529"]
[BlackElo "2318"]
[TimeControl "180+1"]
[EndTime "9:05:44 PDT"]
[Termination "IndianSchoolOfSuffering won on time"]

1. e4 {[%clk 0:02:59.6]} 1... e5 {[%clk 0:02:59.6]} 2. Nf3 {[%clk 0:02:59.3]}
2... Nc6 {[%clk 0:03:00]} 3. Bc4 {[%clk 0:02:59.2]} 3... Nf6 {[%clk 0:02:59.7]}
4. d3 {[%clk 0:02:59.1]} 4... Be7 {[%clk 0:02:59.6]} 5. Nc3 {[%clk 0:02:57.9]}
5... d6 {[%clk 0:02:59.3]} 6. a3 {[%clk 0:02:56.7]} 6... O-O {[%clk 0:02:59]} 7.
Nd5 {[%clk 0:02:56.2]} 7... Nxd5 {[%clk 0:02:57.5]} 8. Bxd5 {[%clk 0:02:56.3]}
8... Kh8 {[%clk 0:02:55.2]} 9. O-O {[%clk 0:02:55.6]} 9... f5 {[%clk 0:02:54.7]}
10. exf5 {[%clk 0:02:54.9]} 10... Bxf5 {[%clk 0:02:54.2]} 11. Be3 {[%clk
0:02:52]} 11... Bg4 {[%clk 0:02:52.4]} 12. h3 {[%clk 0:02:51.5]} 12... Bh5
{[%clk 0:02:52.3]} 13. c3 {[%clk 0:02:49.6]} 13... Bf6 {[%clk 0:02:51.8]} 14. g4
{[%clk 0:02:43.4]} 14... Bg6 {[%clk 0:02:21.5]} 15. Qd2 {[%clk 0:02:42.1]} 15...
Ne7 {[%clk 0:01:41]} 16. Bxb7 {[%clk 0:02:37.4]} 16... c6 {[%clk 0:01:41]} 17.
Bxa8 {[%clk 0:02:36.4]} 17... Qxa8 {[%clk 0:01:41.9]} 18. g5 {[%clk 0:02:34.2]}
18... c5 {[%clk 0:01:27]} 19. gxf6 {[%clk 0:02:22.7]} 19... Qxf3 {[%clk
0:01:21.8]} 20. fxg7+ {[%clk 0:02:21.9]} 20... Kxg7 {[%clk 0:01:19.5]} 21. Bh6+
{[%clk 0:02:21.6]} 21... Kg8 {[%clk 0:01:15.7]} 22. Bxf8 {[%clk 0:02:21]} 22...
Kxf8 {[%clk 0:00:43.5]} 23. Qh6+ {[%clk 0:02:14.9]} 23... Kg8 {[%clk 0:00:41.4]}
24. Rae1 {[%clk 0:02:10.5]} 24... Nf5 {[%clk 0:00:41.1]} 25. Qg5 {[%clk
0:02:08.1]} 25... Qxh3 {[%clk 0:00:28.3]} 26. Re3 {[%clk 0:02:07.2]} 26... Nxe3
{[%clk 0:00:17.3]} 27. fxe3 {[%clk 0:02:05.9]} 27... Qc8 {[%clk 0:00:09.5]} 28.
e4 {[%clk 0:02:03]} 28... a5 {[%clk 0:00:07.9]} 29. c4 {[%clk 0:02:02]} 29... a4
{[%clk 0:00:08.1]} 30. Kh2 {[%clk 0:01:57.3]} 30... Qd7 {[%clk 0:00:06.5]} 31.
Kg3 {[%clk 0:01:56.6]} 31... Qe8 {[%clk 0:00:05.8]} 32. Qf6 {[%clk 0:01:54.3]}
32... Qc8 {[%clk 0:00:04.1]} 33. Qxd6 {[%clk 0:01:49.8]} 33... Bh5 {[%clk
0:00:02.4]} 34. Rf5 {[%clk 0:01:45.6]} 34... Bg6 {[%clk 0:00:02.6]} 35. Rxe5
{[%clk 0:01:43.5]} 1-0

[Event "Early-Titled-Tuesday-Blitz-May-28-2024"]
[Site "Chess.com"]
[Date "2024.05.28"]
[Round "6"]
[White "GM_Huschenbeth"]
[Black "Fraler15"]
[Result "1-0"]
[WhiteElo "2479"]
[BlackElo "2203"]
[TimeControl "180+1"]
[EndTime "9:05:47 PDT"]
[Termination "GM_Huschenbeth won by resignation"]

1. e4 {[%clk 0:03:00.9]} 1... c5 {[%clk 0:02:59.4]} 2. Nf3 {[%clk 0:03:00]} 2...
e6 {[%clk 0:02:59.5]} 3. d4 {[%clk 0:02:58.1]} 3... cxd4 {[%clk 0:03:00.4]} 4.
c3 {[%clk 0:02:58.2]} 4... dxc3 {[%clk 0:02:50.3]} 5. Nxc3 {[%clk 0:02:59.1]}
5... Nc6 {[%clk 0:02:49.1]} 6. Bc4 {[%clk 0:02:58.9]} 6... a6 {[%clk 0:02:48.8]}
7. O-O {[%clk 0:02:58.6]} 7... Nge7 {[%clk 0:02:45.5]} 8. Re1 {[%clk 0:02:51]}
8... Ng6 {[%clk 0:02:44.2]} 9. Bg5 {[%clk 0:02:41.2]} 9... f6 {[%clk 0:02:42]}
10. Be3 {[%clk 0:02:36.2]} 10... b5 {[%clk 0:02:36.6]} 11. Bb3 {[%clk
0:02:34.5]} 11... Be7 {[%clk 0:02:35.8]} 12. h4 {[%clk 0:02:30.1]} 12... O-O
{[%clk 0:02:31.4]} 13. Nd5 {[%clk 0:02:18.7]} 13... exd5 {[%clk 0:02:26.3]} 14.
exd5 {[%clk 0:02:14.5]} 14... Kh8 {[%clk 0:02:19.7]} 15. d6 {[%clk 0:01:59.6]}
15... Nge5 {[%clk 0:02:10.2]} 16. Bc5 {[%clk 0:01:44.8]} 16... Bb7 {[%clk
0:01:54.9]} 17. Rxe5 {[%clk 0:00:55]} 17... fxe5 {[%clk 0:01:52.2]} 18. dxe7
{[%clk 0:00:55]} 18... Nxe7 {[%clk 0:01:51.4]} 19. Nxe5 {[%clk 0:00:54.3]} 19...
d5 {[%clk 0:01:36.2]} 20. Bc2 {[%clk 0:00:53.7]} 20... Rf6 {[%clk 0:01:13.7]}
21. Qh5 {[%clk 0:00:43.4]} 21... g6 {[%clk 0:01:12.7]} 22. Qg5 {[%clk
0:00:31.5]} 22... Ng8 {[%clk 0:01:06.3]} 23. Bd4 {[%clk 0:00:28.4]} 23... Rc8
{[%clk 0:00:54.6]} 24. Nf7+ {[%clk 0:00:26.7]} 1-0

[Event "Early-Titled-Tuesday-Blitz-May-28-2024"]
[Site "Chess.com"]
[Date "2024.05.28"]
[Round "6"]
[White "Milop27"]
[Black "Alexchess1984"]
[Result "1-0"]
[WhiteElo "2506"]
[BlackElo "2607"]
[TimeControl "180+1"]
[EndTime "9:05:49 PDT"]
[Termination "Milop27 won by checkmate"]

1. e4 {[%clk 0:02:56.4]} 1... e6 {[%clk 0:02:59.4]} 2. d4 {[%clk 0:02:55.6]}
2... d5 {[%clk 0:02:59.7]} 3. e5 {[%clk 0:02:55.3]} 3... c5 {[%clk 0:02:59.8]}
4. c3 {[%clk 0:02:56]} 4... Nc6 {[%clk 0:02:59.1]} 5. Nf3 {[%clk 0:02:56.1]}
5... Nh6 {[%clk 0:02:55.9]} 6. a3 {[%clk 0:02:54.1]} 6... Nf5 {[%clk 0:02:50.5]}
7. b4 {[%clk 0:02:52]} 7... cxd4 {[%clk 0:02:47.7]} 8. cxd4 {[%clk 0:02:52.1]}
8... Bd7 {[%clk 0:02:44.8]} 9. Bb2 {[%clk 0:02:47.2]} 9... Be7 {[%clk
0:02:41.9]} 10. Nbd2 {[%clk 0:02:45.6]} 10... O-O {[%clk 0:02:40.3]} 11. Bd3
{[%clk 0:02:42.6]} 11... f6 {[%clk 0:02:33.9]} 12. O-O {[%clk 0:02:38.6]} 12...
fxe5 {[%clk 0:02:31.6]} 13. dxe5 {[%clk 0:02:38.1]} 13... Rc8 {[%clk 0:02:18.1]}
14. Nb3 {[%clk 0:02:37.8]} 14... Be8 {[%clk 0:02:11.2]} 15. Rc1 {[%clk
0:02:31.8]} 15... Bh5 {[%clk 0:02:07.7]} 16. Be2 {[%clk 0:02:29.4]} 16... a6
{[%clk 0:01:55.3]} 17. Re1 {[%clk 0:02:26.3]} 17... Qe8 {[%clk 0:01:46.8]} 18.
Nc5 {[%clk 0:02:21.8]} 18... Bxc5 {[%clk 0:01:43.7]} 19. Rxc5 {[%clk 0:02:21.5]}
19... Qg6 {[%clk 0:01:40.1]} 20. Kh1 {[%clk 0:02:12.4]} 20... Bxf3 {[%clk
0:01:34.2]} 21. Bxf3 {[%clk 0:02:11.5]} 21... Nh4 {[%clk 0:01:34.7]} 22. Rg1
{[%clk 0:01:53.3]} 22... Nxf3 {[%clk 0:01:31.6]} 23. gxf3 {[%clk 0:01:51.4]}
23... Qh5 {[%clk 0:01:27]} 24. Rg3 {[%clk 0:01:47.6]} 24... Rf7 {[%clk
0:01:23.5]} 25. Qe2 {[%clk 0:01:40.1]} 25... Rcf8 {[%clk 0:01:23]} 26. Rc3
{[%clk 0:01:34.4]} 26... Nxe5 {[%clk 0:01:22.6]} 27. Re3 {[%clk 0:01:31.6]}
27... Nxf3 {[%clk 0:01:17.6]} 28. Rexf3 {[%clk 0:01:29.2]} 28... g6 {[%clk
0:01:04.5]} 29. Qxe6 {[%clk 0:01:23.3]} 29... d4 {[%clk 0:00:33.2]} 30. Bxd4
{[%clk 0:01:20.4]} 30... Qb5 {[%clk 0:00:31.4]} 31. Rxg6+ {[%clk 0:01:16]} 31...
hxg6 {[%clk 0:00:27.3]} 32. Qxg6+ {[%clk 0:01:15.2]} 32... Rg7 {[%clk
0:00:25.1]} 33. Qxg7# {[%clk 0:01:15.2]} 1-0

[Event "Early-Titled-Tuesday-Blitz-May-28-2024"]
[Site "Chess.com"]
[Date "2024.05.28"]
[Round "6"]
[White "Witik"]
[Black "vugarrasulov"]
[Result "0-1"]
[WhiteElo "2792"]
[BlackElo "3004"]
[TimeControl "180+1"]
[EndTime "9:05:52 PDT"]
[Termination "vugarrasulov won by resignation"]

1. d4 {[%clk 0:02:59.6]} 1... Nf6 {[%clk 0:03:00]} 2. Nf3 {[%clk 0:02:59.7]}
2... e6 {[%clk 0:02:51.7]} 3. Bf4 {[%clk 0:02:56.5]} 3... d5 {[%clk 0:02:51.6]}
4. e3 {[%clk 0:02:53.8]} 4... Bd6 {[%clk 0:02:51.8]} 5. Nbd2 {[%clk 0:02:53.8]}
5... Nc6 {[%clk 0:02:51.4]} 6. Bb5 {[%clk 0:02:42]} 6... O-O {[%clk 0:02:51]} 7.
O-O {[%clk 0:02:41.2]} 7... Bd7 {[%clk 0:02:50.6]} 8. c3 {[%clk 0:02:14.9]} 8...
Qe7 {[%clk 0:02:42.2]} 9. Re1 {[%clk 0:02:00]} 9... a6 {[%clk 0:02:41]} 10. Bxc6
{[%clk 0:01:50.1]} 10... Bxc6 {[%clk 0:02:41.9]} 11. Ne5 {[%clk 0:01:48.5]}
11... Be8 {[%clk 0:02:41.7]} 12. Bg5 {[%clk 0:01:48.1]} 12... Qd8 {[%clk
0:02:37]} 13. e4 {[%clk 0:01:43]} 13... Be7 {[%clk 0:02:33.9]} 14. exd5 {[%clk
0:01:37.6]} 14... Nxd5 {[%clk 0:02:22.4]} 15. Bxe7 {[%clk 0:01:37.4]} 15... Qxe7
{[%clk 0:02:22.5]} 16. Qb3 {[%clk 0:01:36.1]} 16... Rb8 {[%clk 0:02:04.4]} 17.
a4 {[%clk 0:01:33.4]} 17... Nf4 {[%clk 0:02:00]} 18. Qd1 {[%clk 0:01:00.3]}
18... f6 {[%clk 0:01:57]} 19. Nef3 {[%clk 0:00:56.7]} 19... Bc6 {[%clk
0:01:54.9]} 20. Re3 {[%clk 0:00:49.4]} 20... Qf7 {[%clk 0:01:51.6]} 21. Nf1
{[%clk 0:00:46]} 21... Rbd8 {[%clk 0:01:48.4]} 22. Ng3 {[%clk 0:00:37.3]} 22...
e5 {[%clk 0:01:46.6]} 23. Qc2 {[%clk 0:00:37.5]} 23... exd4 {[%clk 0:01:40.6]}
24. cxd4 {[%clk 0:00:29.7]} 24... Nd5 {[%clk 0:01:28.4]} 25. Ree1 {[%clk
0:00:26.6]} 25... Qg6 {[%clk 0:01:28.2]} 26. Qxg6 {[%clk 0:00:20.9]} 26... hxg6
{[%clk 0:01:29.1]} 27. Ne4 {[%clk 0:00:21.3]} 27... Nb4 {[%clk 0:01:26.2]} 28.
Re2 {[%clk 0:00:14.7]} 28... Rfe8 {[%clk 0:01:25]} 29. Rae1 {[%clk 0:00:14.5]}
29... Nd3 {[%clk 0:01:25]} 0-1